Cogmind - Beta 10.2 @@@ ROGUE MODE // 2021.05.26 @ 23:53:28 Player: Rushional Result: Self-destructed Performance ------------- Evolutions (3) 1500 Regions Visited (6) 1200 Robots Destroyed (52) 260 Value Destroyed (1140) 1140 Prototype IDs (7) 140 Alien Tech Used (0) 0 Bonus (-236) -236 TOTAL SCORE: 4004 Bonus ------- Follower Combat Kills 21 Friendly Fire -257 Cogmind --------- Core Integrity 700/700 Matter 290/300 Energy 253/265 System Corruption 0% Temperature Cool (0) Movement Rolling (100) Ox1 Location -7/Factory Parts ------- > --- POWER (1) -------- Improved Ion Engine > --- PROPULSION (3) --- Armored Wheel Armored Wheel Armored Wheel > --- UTILITY (6) ------ Improved Heat Sink Cooling System Medium Storage Unit High-capacity Storage Unit Advanced Signal Interpreter > --- WEAPON (3) ------- Improved Medium Laser Improved Medium Laser Heavy Assault Rifle > --- INVENTORY (16) --- Improved Ion Engine Deuterium Engine Light Nuclear Core Wheel Heat Sink Improved Medium Laser Improved Medium Laser Light Assault Rifle Light Assault Rifle Advanced Assault Cannon Great Maul Peak State ------------ > --- POWER ------------ Improved Ion Engine > --- PROPULSION ------- Armored Wheel Armored Wheel Armored Wheel > --- UTILITY ---------- Improved Heat Sink High-capacity Storage Unit Hardened Heavy Armor Plating > --- WEAPON ----------- Improved Medium Laser Improved Medium Laser Great Maul > --- INVENTORY -------- Improved Ion Engine Deuterium Engine Light Nuclear Core Wheel Heat Sink Cooling System Medium Storage Unit Advanced Signal Interpreter Improved Medium Laser Improved Medium Laser Heavy Assault Rifle Advanced Assault Cannon [Rating: 31] Favorites ----------- Power Improved Ion Engine Engine Improved Ion Engine Power Core Light Nuclear Core Propulsion Armored Wheel Wheel Armored Wheel Utility Weapon Shielding Device Improved Heat Sink Storage Small Storage Unit Processor Advanced Signal Interpreter Protection Weapon Shielding Weapon Assault Rifle Energy Gun EM Pulse Gun Ballistic Gun Assault Rifle Launcher Rocket Launcher Impact Weapon Great Maul Build | -11 -10 -10 -10 -9 -8 -7 ------- Run | Scr Mat Min Exi Min Mat Fac Slots Evolved 6 | . . . . . 4 2 Power . | . . . . . . . Propulsion 1 | . . . . . 1 . Utility 4 | . . . . . 2 2 Weapon 1 | . . . . . 1 . Parts Attached 53 | 4 10 4 1 3 30 1 Power 7 | 1 2 1 . . 3 . Engine 6 | 1 2 . . . 3 . Core 1 | . . 1 . . . . Reactor . | . . . . . . . Propulsion 11 | . 4 . . 1 6 . Treads . | . . . . . . . Leg . | . . . . . . . Wheel 11 | . 4 . . 1 6 . Hover . | . . . . . . . Flight . | . . . . . . . Utility 13 | 1 1 2 1 . 7 1 Device 4 | . . . . . 4 . Storage 6 | 1 . 2 1 . 2 . Processor 1 | . . . . . . 1 Hackware . | . . . . . . . Protection 2 | . 1 . . . 1 . Artifact . | . . . . . . . Weapon 22 | 2 3 1 . 2 14 . Energy Gun 11 | 1 2 . . 1 7 . Energy Cannon . | . . . . . . . Ballistic Gun 6 | 1 1 1 . 1 2 . Ballistic Cannon . | . . . . . . . Launcher 2 | . . . . . 2 . Special Weapon . | . . . . . . . Impact Weapon 3 | . . . . . 3 . Slashing Weapon . | . . . . . . . Piercing Weapon . | . . . . . . . Special Melee Weapon . | . . . . . . . Unidentified Prototypes 2 | . . . . . 2 . Parts Lost 10 | . 1 . . 2 7 . Power 1 | . . . . . 1 . Propulsion 2 | . 1 . . 1 . . Utility 2 | . . . . . 2 . Weapon 5 | . . . . 1 4 . Highest Loss Streak 3 | . 1 . . 2 3 . Average Slot Usage (%) 93 | . 94 98 100 100 87 . Engine 7 | . 14 11 . . 7 . Core 4 | . . 2 14 14 1 . Wheel 27 | . 27 28 28 28 26 . Device 3 | . . . . . 9 . Storage 12 | . 14 13 14 14 11 . Protection 10 | . 9 14 14 14 8 . Energy Gun 13 | . 14 14 14 8 14 . Ballistic Gun 11 | . 14 13 14 19 5 . Naked Turns . | . . . . . . . Heaviest Build 70 | 11 18 17 18 19 70 . Greatest Support 36 | 3 24 22 22 24 36 . Greatest Overweight (x) 3 | 3 3 . . . 2 . Average Overweight (x) . | 2 . . . . 1 . Largest Inventory Capacity 16 | 6 6 6 8 8 16 16 Average Capacity 8 | 5 6 5 6 8 12 16 Most Carried 13 | 2 6 6 8 8 13 11 Average Carried 7 | 1 5 5 6 7 10 11 Final Capacity 16 | 6 6 6 8 8 16 16 Final Carried 12 | 2 6 6 8 8 12 11 Class Distribution -------------------- 84% | Mutant 7% | Tank 7% | Gunner Dominant Class ---------------- Mutant | -10/Materials Mutant | -10/Mines Mutant | -10/Exiles Mutant | -9/Mines Mutant | -8/Materials Mutant | -7/Factory Resources | -11 -10 -10 -10 -9 -8 -7 ----------- Run | Scr Mat Min Exi Min Mat Fac Matter Collected 1095 | 255 266 59 10 38 467 . Remotely . | . . . . . . . Salvage Created 1713 | 71 680 24 . 3 935 . Parts 107 | 1 51 5 . . 50 . Haulers Intercepted 4 | . 1 . . . 3 . Recyclers Shooed . | . . . . . . . Parts Field Recycled . | . . . . . . . Retrieved Matter . | . . . . . . . Parts Self-Destructed . | . . . . . . . Prevented . | . . . . . . . Kills | -11 -10 -10 -10 -9 -8 -7 ------- Run | Scr Mat Min Exi Min Mat Fac Combat Hostiles Destroyed 34 | . 16 2 . 2 14 . Melee 1 | . . . . . 1 . Guns 31 | . 16 2 . 2 11 . AOE 2 | . . . . . 2 . Classes Destroyed 12 | 1 7 . . 2 2 . Worker 5 | . 2 . . . 3 . Builder 3 | . 3 . . . . . Tunneler 2 | . 1 . . . 1 . Hauler 4 | . 1 . . . 3 . Recycler 1 | 1 . . . . . . Operator 2 | . 1 . . . 1 . Watcher 1 | . . . . . 1 . Swarmer 12 | . 6 2 . . 4 . Grunt 19 | . 10 . . . 9 . Sentry 1 | . . . . . 1 . Demolisher 1 | . . . . 1 . . Assembled 1 | . . . . 1 . . Thug 1 | . . . . . 1 . Best Kill Streak 13 | 1 13 2 . 1 6 . Combat Bots Only 5 | . 5 2 . 1 4 . Max Kills in Single Turn 2 | 1 2 1 . 1 2 . Gunslinging 1 | . 1 . . . . . Exploded 1 | . . . . . 1 . Melee 1 | . . . . . 1 . Uniques/NPCs Destroyed . | . . . . . . . Combat | -11 -10 -10 -10 -9 -8 -7 -------- Run | Scr Mat Min Exi Min Mat Fac Damage Taken 2052 | . 564 53 . 253 1182 . Core 295 | . 148 15 . 60 72 . Absorbed by Shields . | . . . . . . . Core Remaining (%) 65 | 100 . . . 10 86 . Volleys Fired 123 | 5 45 9 . 6 58 . Largest 3 | 2 2 2 . 2 3 . Hottest 135 | 70 68 63 . 60 135 . Shots Fired 258 | 10 90 18 . 12 128 . Gun 252 | 10 90 18 . 12 122 . Cannon . | . . . . . . . Launcher 6 | . . . . . 6 . Special . | . . . . . . . Kinetic 100 | 5 45 9 . 10 31 . Thermal 48 | 5 . . . . 43 . Explosive 6 | . . . . . 6 . Electromagnetic 104 | . 45 9 . 2 48 . Robot Hit Streak 22 | 8 13 8 . 5 22 . Robot Miss Streak 4 | 2 4 3 . 4 4 . Penetration Max . | . . . . . . . Secondary Targets 4 | . 3 . . . 1 . Max Gunslinging Chain 1 | . 1 . . . 1 . Shots Hit Robots 168 | 8 63 9 . 6 82 . Core Hits 94 | 2 38 3 . 3 48 . Critical Hits . | . . . . . . . Critical Kills . | . . . . . . . Critical Parts Destroyed . | . . . . . . . Melee Attacks 21 | . . . . . 21 . Impact 21 | . . . . . 21 . Slashing . | . . . . . . . Piercing . | . . . . . . . Sneak Attacks . | . . . . . . . Combat Hostiles . | . . . . . . . Follow-up Attacks . | . . . . . . . Damage Inflicted 2923 | 111 1077 96 . 77 1562 . Guns 2513 | 111 943 96 . 77 1286 . Cannons . | . . . . . . . Explosions 390 | . 134 . . . 256 . Melee 20 | . . . . . 20 . Ramming . | . . . . . . . Kinetic 1034 | 61 616 54 . 66 237 . Thermal 678 | 50 134 . . . 494 . Explosive 139 | . . . . . 139 . Electromagnetic 1052 | . 327 42 . 11 672 . Impact 20 | . . . . . 20 . Slashing . | . . . . . . . Piercing . | . . . . . . . Highest Corruption 1 | . . . . 1 . . Average Corruption 1 | . . . . 1 . . Corruption Purged . | . . . . . . . Overload Shots . | . . . . . . . Overflow Damage 40 | . 40 . . . . . Projectiles . | . . . . . . . Explosions 40 | . 40 . . . . . Melee . | . . . . . . . Knockbacks . | . . . . . . . Impact . | . . . . . . . Kinetic . | . . . . . . . Secondary . | . . . . . . . Self-Inflicted Damage 230 | . 64 . . . 166 . Shots 5 | . 2 . . . 3 . Rammed . | . . . . . . . Targets Rammed . | . . . . . . . Kicked . | . . . . . . . Crushed . | . . . . . . . Highest Temperature 453 | 27 141 12 . 12 453 . Average Temperature 49 | 11 30 5 . 7 91 . Received Heat Transfer 618 | . 159 . . . 459 . Siege Activations . | . . . . . . . Robots Corrupted . | . . . . . . . Combat Hostiles . | . . . . . . . Parts Fried 3 | . 1 . . . 2 . Impact Corruptions . | . . . . . . . Robots Melted . | . . . . . . . Combat Hostiles . | . . . . . . . Parts Melted 2 | . . . . . 2 . Heat Transferred 1299 | 148 150 . . . 1001 . Parts Sabotaged . | . . . . . . . Parts Stolen . | . . . . . . . Parts Stripped . | . . . . . . . Power Chain Reactions 4 | . 2 . . . 2 . Missiles Intercepted . | . . . . . . . Alert | -11 -10 -10 -10 -9 -8 -7 ------- Run | Scr Mat Min Exi Min Mat Fac Peak Influence 385 | 5 385 201 . 20 267 93 Initial 93 | . 3 72 . . 7 93 Average 115 | 2 156 125 . 7 125 93 Maximum Alert Level 1 | . 1 1 . . 1 . Low Security (%) 84 | 100 69 86 . 100 88 100 Level 1 15 | . 30 13 . . 11 . Level 2 . | . . . . . . . Level 3 . | . . . . . . . Level 4 . | . . . . . . . Level 5 . | . . . . . . . High Security . | . . . . . . . Max Security . | . . . . . . . Squads Dispatched 8 | . 4 . . . 4 . Investigation 3 | . 1 . . . 2 . Extermination . | . . . . . . . Reinforcement 5 | . 3 . . . 2 . Assault . | . . . . . . . Garrison . | . . . . . . . Intercept . | . . . . . . . Construction Impeded 1 | . . . . . 1 . Haulers Reinforced . | . . . . . . . Stealth | -11 -10 -10 -10 -9 -8 -7 --------- Run | Scr Mat Min Exi Min Mat Fac Distress Signals 2 | . 2 . . . . . Communications Jammed . | . . . . . . . Distress Signals . | . . . . . . . Times Spotted 58 | . 24 3 . 1 30 . Peak Tracking Total 5 | . 5 3 . 1 4 . Tactical Retreats 6 | . 2 1 . . 3 . Traps | -11 -10 -10 -10 -9 -8 -7 ------- Run | Scr Mat Min Exi Min Mat Fac Traps Triggered 3 | . 2 . . . 1 . Indirectly . | . . . . . . . Trap Hack Attempts . | . . . . . . . Triggered . | . . . . . . . Disarmed . | . . . . . . . Reprogrammed . | . . . . . . . Reused . | . . . . . . . Traps Extracted . | . . . . . . . Installed 5 | . . . . 5 . . Triggered . | . . . . . . . Machines | -11 -10 -10 -10 -9 -8 -7 ---------- Run | Scr Mat Min Exi Min Mat Fac Machines Disabled 3 | . 1 . . . 2 . Max in Single Turn 1 | . 1 . . . 1 . Machines Sabotaged . | . . . . . . . Garrisons Compromised . | . . . . . . . Overloaded Fab Kills . | . . . . . . . Fab Network Shutdowns . | . . . . . . . Hacking | -11 -10 -10 -10 -9 -8 -7 --------- Run | Scr Mat Min Exi Min Mat Fac Machines Accessed 10 | . 1 . 1 1 7 . Terminals 7 | . 1 . . . 6 . Fabricators . | . . . . . . . Repair Stations . | . . . . . . . Recycling Units . | . . . . . . . Scanalyzers 1 | . . . . . 1 . Garrison Access . | . . . . . . . Total Hacks 25 | . 6 . 1 1 17 . Successful 13 | . 4 . 1 1 7 . Failed 12 | . 2 . . . 10 . Catastrophic 3 | . 1 . . . 2 . Database Lockouts . | . . . . . . . Manual 13 | . 6 . . . 7 . Terminals 21 | . 6 . . . 15 . Fabricators . | . . . . . . . Repair Stations . | . . . . . . . Recycling Units . | . . . . . . . Scanalyzers 2 | . . . . . 2 . Garrison Access . | . . . . . . . Terminal Hacks 11 | . 4 . 1 1 5 . Record 1 | . . . 1 . . . Part Schematic 1 | . 1 . . . . . Prototype ID Bank 3 | . 1 . . . 2 . Open Door 1 | . . . . 1 . . Branch Access Points 2 | . 1 . . . 1 . Alert Level 1 | . . . . . 1 . Unreport Threat 1 | . 1 . . . . . Registered Components 1 | . . . . . 1 . Fabricator Hacks . | . . . . . . . Repair Station Hacks . | . . . . . . . Recycling Unit Hacks . | . . . . . . . Scanalyzer 2 | . . . . . 2 . Insert Component 1 | . . . . . 1 . Analyze 1 | . . . . . 1 . Garrison Access Hacks . | . . . . . . . Unauthorized Hacks . | . . . . . . . Terminals . | . . . . . . . Fabricators . | . . . . . . . Repair Stations . | . . . . . . . Recycling Units . | . . . . . . . Scanalyzers . | . . . . . . . Garrison Access . | . . . . . . . Data Cores Recovered . | . . . . . . . Used . | . . . . . . . Hacking Detections 8 | . 1 . . . 7 . Full Trace Events 2 | . . . . . 2 . Feedback Events . | . . . . . . . Feedback Blocked . | . . . . . . . Robot Schematics Acquired . | . . . . . . . Robots Built . | . . . . . . . Matter . | . . . . . . . Time . | . . . . . . . Total Robot Build Rating . | . . . . . . . Part Schematics Acquired 2 | . 1 . . . 1 . Parts Built . | . . . . . . . Matter . | . . . . . . . Time . | . . . . . . . Total Part Build Rating . | . . . . . . . Parts Repaired . | . . . . . . . Time . | . . . . . . . Parts Recycled . | . . . . . . . Recycled Matter . | . . . . . . . Retrieved Matter . | . . . . . . . Retrieved Components . | . . . . . . . Parts Scanalyzed 1 | . . . . . 1 . Part Schematics Acquired 1 | . . . . . 1 . Parts Damaged . | . . . . . . . Bothacking | -11 -10 -10 -10 -9 -8 -7 ------------ Run | Scr Mat Min Exi Min Mat Fac Used RIF Installer . | . . . . . . . Robots Hacked . | . . . . . . . Non-combat . | . . . . . . . Combat . | . . . . . . . Robot Hacks Applied . | . . . . . . . Relay Couplers Released . | . . . . . . . Robots Rewired . | . . . . . . . Allies Hacked . | . . . . . . . Hacks Repelled . | . . . . . . . Allies | -11 -10 -10 -10 -9 -8 -7 -------- Run | Scr Mat Min Exi Min Mat Fac Total Allies 3 | . . 3 . . . . Largest Group 3 | . . 3 . . . . Highest-Rated Group 40 | . . 40 . . . . Highest-Rated Ally 16 | . . 16 . . . . Total Orders 1 | . . 1 . . . . ROAM 1 | . . 1 . . . . Ally Attacks 15 | . . 15 . . . . Total Damage 168 | . . 168 . . . . Kills 5 | . . 5 . . . . Allies Corrupted . | . . . . . . . Allies Melted . | . . . . . . . Intel | -11 -10 -10 -10 -9 -8 -7 ------- Run | Scr Mat Min Exi Min Mat Fac Robot Analysis Total . | . . . . . . . Derelict Logs Recovered . | . . . . . . . Drone Launches . | . . . . . . . Drone Recoveries . | . . . . . . . Exploration | -11 -10 -10 -10 -9 -8 -7 ------------- Run | Scr Mat Min Exi Min Mat Fac Turns Passed 2452 | 95 563 260 406 234 893 1 Spaces Moved 1910 | 41 380 226 474 222 567 . Core 48 | 41 7 . . . . . Treads . | . . . . . . . Legs . | . . . . . . . Wheels 1862 | . 373 226 474 222 567 . Hover . | . . . . . . . Flight . | . . . . . . . Fastest Speed 50 | 50 85 85 85 85 96 . Average Speed 92 | 175 91 85 85 86 98 . Slowest Speed 200 | 200 200 85 85 90 106 . Overloaded Moves . | . . . . . . . Propulsion Burnouts . | . . . . . . . Robots Hopped . | . . . . . . . Cave-ins Triggered . | . . . . . . . Exploration Rate (%) 43 | 3 40 41 85 52 38 . Regions Visited 6 Branch Regions 3 Pre-discovered Areas 1 | . . . 1 . . . Known Exits Taken 1 | . 1 . . . . . Unknown Exits Taken 5 | 1 . 1 1 1 1 . Scrap Searched 4 | . . 2 . 2 . . Spaces Dug 20 | . . . . . 20 . Terrain Destroyed 58 | . 9 . . . 49 . Melee 20 | . . . . . 20 . Projectile . | . . . . . . . AOE 38 | . 9 . . . 29 . Terrain Rammed . | . . . . . . . Walls Destroyed . | . . . . . . . Machines Disabled . | . . . . . . . Actions | -11 -10 -10 -10 -9 -8 -7 --------- Run | Scr Mat Min Exi Min Mat Fac Total 2317 | 53 506 275 477 253 752 1 Wait 142 | 2 53 31 . 7 49 . Move 1904 | 40 379 225 473 221 566 . Hop . | . . . . . . . Pick Up 35 | 2 9 2 2 6 14 . Fast Attach 22 | 4 7 4 . . 7 . Attach 17 | . 2 . . 3 11 1 Detach 6 | . 1 . . . 5 . Swap 15 | . 1 . 1 . 13 . Drop 27 | . 9 4 1 5 8 . Fire 123 | 5 45 9 . 6 58 . Melee 21 | . . . . . 21 . Ram . | . . . . . . . Kick . | . . . . . . . Crush . | . . . . . . . Escape Stasis . | . . . . . . . Rewire . | . . . . . . . Trap 5 | . . . . 5 . . Miscellaneous . | . . . . . . . Route ------- -11/Scrapyard -10/Materials (discovered 2 exits: [*Mat] / *Min) -10/Mines -10/Exiles (discovered 2 exits: *Min x2) -9/Mines -8/Materials -7/Factory History --------- Turn | Location | Event 24 | -11/Scrapyard | Discovered new exit (range 15) 96 | -11/Scrapyard | Entered Materials 312 | -10/Materials | Build established: Mutant 418 | -10/Materials | Core integrity fell below 50% 438 | -10/Materials | Identified exit to Mines 584 | -10/Materials | Discovered new exit (range 16) 659 | -10/Materials | Entered Mines 660 | -10/Mines | Assisted by bots powering up and referring to "LRC-V3" 915 | -10/Mines | Deemed a non-threat by the Exiles lab entrance 915 | -10/Mines | Discovered new exit (range 5) 919 | -10/Mines | Entered Exiles 938 | -10/Exiles | Discovered new exit (range 14) 962 | -10/Exiles | Met 8R-AWN 977 | -10/Exiles | Met EX-HEX 1023 | -10/Exiles | Met EX-DEC 1038 | -10/Exiles | Visited The Gauntlet 1147 | -10/Exiles | Learned location of Zion (-7) 1202 | -10/Exiles | Discovered new exit (range 14) 1266 | -10/Exiles | Met EX-BIN 1325 | -10/Exiles | Entered Mines 1366 | -9/Mines | Found a hidden stash of uninstalled traps 1412 | -9/Mines | Assembled infested the area 1417 | -9/Mines | Assisted by a Guerilla fighting off Assembled 1468 | -9/Mines | Core integrity fell below 20% 1536 | -9/Mines | Discovered new exit (range 12) 1546 | -9/Mines | Met a Derelict who couldn't figure out how to use a Trap Extractor 1559 | -9/Mines | Entered Materials 1559 | -8/Materials | Evolved 4 slots: Propulsion x1, Utility x2, Weapon x1 1719 | -8/Materials | Lost 3 parts (1p1u1w) 2418 | -8/Materials | Discovered new exit (range 10) 2452 | -8/Materials | Entered Factory 2452 | -7/Factory | Evolved 2 slots: Utility x2 2453 | -7/Factory | Self-destructed Last Messages --------------- 02407_ K-01 Serf collects debris. 02418_ EXIT=FOUND 02421_ Connecting with Terminal... >>Prototypes Downloading prototype IDs... Hvy. Deuterium Engine Enh. Autogun >>Inventory(Components) Retrieving component inventory records... Found 2 registered component stockpiles: SDHNW4FQT2: Flak Cannon F94GWL19QW: Adv. Signal Interpreter Downloaded coordinate data. 02421_ ALERT: Suspicious activity at Terminal M010. Dispatching Investigation squad. 02423_ K-01 Serf collects debris. PARAMETERS=UTILITY_2 LOCATION=UNKNOWN GOAL=ESCAPE [Achievement: Just Browsing] Map ----- +----------------------------------------------------+ | ??????????????????????????????????? | | ??????????????????????????????????? | | ??????????????????????????????????? | | ??????????????????????????????????? | | ??????????????????????????????????? | | ??????????????????????????????????? | | ??????????????????????????????????? | | ??????????????????????????????????? | | ??????????????????????????????????? | | ??????????????????????????????????? | | ?????????? ?????????????????????? | | ?????????? ???????????????????? | | ?????????? ??????????????????? | | ?????????? ??????????????????? | | ?????????? #??????????????????? | | ?????????? #??????????????????? | | ?????????? #??????????????????? | | ?????????# #??????????????????? | | ?????????# #??????????????????? | | ?????????# #??????????????????? | | ?????????# #??????????????????? | | ?????????# #??????????????????? | | ???????### ##########?????????? | | ???????# ????????? | | ???????# ????????? | | ???????# @ ????????? | | ???????# ????????? | | ???????# ????????? | | ???????#####+############?????????? | | ??????????????????????????????????? | | ??????????????????????????????????? | | ??????????????????????????????????? | | ??????????????????????????????????? | | ??????????????????????????????????? | | ??????????????????????????????????? | | ??????????????????????????????????? | | ??????????????????????????????????? | | ??????????????????????????????????? | | ??????????????????????????????????? | | ??????????????????????????????????? | | ??????????????????????????????????? | | ??????????????????????????????????? | | ??????????????????????????????????? | | ??????????????????????????????????? | | ??????????????????????????????????? | | ??????????????????????????????????? | | ??????????????????????????????????? | | ??????????????????????????????????? | | ??????????????????????????????????? | | ??????????????????????????????????? | +----------------------------------------------------+ Best States ------------- Heat Dissipation 67 Energy Generation 14 Energy Capacity 275 Matter Stores 300 Matter Capacity 300 Sight Range 16 Terrain Scan Density 10 Armor Coverage 600 Weapon Shielding 33 Evasion (%) 43 Item Schematics ----------------- Hcp. Storage Unit | -10/Materials | Hacked Arm. Wheel | -8/Materials | Scanalyzed Robot Schematics ------------------ None Fabricated ------------ Nothing Alien Tech Used ----------------- None Achievements -------------- Just Browsing Part-time Excavator Challenges ------------ None Game ------ Seed SupersonicImpactFlamer Manual? 0 Play Time 01:25:01 Cumulative 33.7 hours Start 2021.01.16 @ 21:14:20 End 2021.05.26 @ 23:53:28 Sessions 5 Manual Loads 0 Difficulty Rogue Special Mode None Game No. 13 Rogue 13 Adventurer 0 Explorer 0 Win Type - Total 0 Types 0/0/0/0/0/0/0/0/0 Lore% 22 Gallery% 25 Achievement% 22 Wizard Run 0 Options --------- ASCII 1 Keyboard 1 Movement Numpad Keybinds 0 Fullscreen 1 Font 18/TerminusBold Map View 76x50 Tactical HUD 1 Map Filters NONE Filters NONE Steam 1 RUN: 5339bf82-be19-4f4a-babd-8e39577f00ea